bitfinex-derivatives/quotes_BTCF0:USTF0_20250928
["timestamp","ask_amount","ask_price","bid_price","bid_amount"]
[1759046712795,0.48391686,109600.0,109590.0,0.30521552]
[1759046713095,1.30855686,109600.0,109590.0,0.30521552]
[1759046717804,1.30847686,109600.0,109590.0,0.30521552]
[1759046718103,0.48391686,109600.0,109590.0,0.30521552]
[1759046718302,1.30843686,109600.0,109590.0,0.30521552]
[1759046720306,0.94763686,109600.0,109590.0,0.30521552]
[1759046720603,1.30843686,109600.0,109590.0,0.30521552]
[1759046724105,1.57809238,109600.0,109590.0,0.27065552]
[1759046724308,1.610947,109600.0,109590.0,0.27065552]
[1759046724806,1.34129148,109600.0,109590.0,0.01485]
[1759046725006,1.34129148,109600.0,109590.0,0.28450552]
[1759046725213,1.34129148,109600.0,109590.0,0.01485]
[1759046725407,1.34129148,109600.0,109590.0,0.28450552]
[1759046725602,1.610947,109600.0,109590.0,0.001]
[1759046725808,2.010947,109600.0,109590.0,0.001]
[1759046726011,2.06022893,109600.0,109590.0,0.001]
[1759046726212,2.010947,109600.0,109590.0,0.001]
[1759046727112,2.06022893,109600.0,109590.0,0.001]
[1759046727515,2.010947,109600.0,109590.0,0.001]
[1759046728818,1.74129148,109600.0,109590.0,0.001]
[1759046729010,2.010947,109600.0,109590.0,0.001]
[1759046730617,2.012747,109600.0,109590.0,0.001]
[1759046731717,2.012907,109600.0,109590.0,0.001]
[1759046734819,2.013027,109600.0,109590.0,0.001]
[1759046736016,1.186427,109600.0,109590.0,0.001]
[1759046736321,2.012987,109600.0,109590.0,0.001]
[1759046736616,2.28307678,109600.0,109590.0,0.001]
[1759046739122,1.74329148,109600.0,109590.0,0.001]
[1759046739322,2.28307678,109600.0,109590.0,0.001]
[1759046739622,1.88307678,109600.0,109590.0,0.001]
[1759046740320,2.24387678,109600.0,109590.0,0.001]
[1759046746327,2.39537678,109600.0,109590.0,0.001]
[1759046746532,2.24387678,109600.0,109590.0,0.001]
[1759046747630,1.41735678,109600.0,109590.0,0.001]
[1759046747831,2.24347678,109600.0,109590.0,0.001]
[1759046748328,2.24347678,109600.0,109580.0,0.01385]
[1759046748524,0.74324147,109590.0,109580.0,0.28374265]
[1759046748827,0.7662581,109590.0,109580.0,0.28374265]
[1759046749528,0.7662581,109590.0,109580.0,0.28774265]
[1759046750531,0.49636545,109590.0,109580.0,0.28774265]
[1759046750732,1.5923381,109590.0,109580.0,0.28974265]
[1759046751433,1.5923381,109590.0,109580.0,0.28774265]
[1759046751634,1.5923381,109590.0,109580.0,0.28974265]
[1759046752628,0.7662581,109590.0,109580.0,0.28974265]
[1759046752829,1.32236545,109590.0,109580.0,0.28974265]
[1759046753030,1.5922581,109590.0,109580.0,0.28974265]
[1759046755134,1.57091338,109590.0,109580.0,0.28974265]
[1759046757540,1.57091338,109590.0,109580.0,0.01985]
[1759046757730,1.57091338,109590.0,109580.0,0.006]
[1759046757931,1.57091338,109590.0,109580.0,0.27589265]
[1759046758434,1.57091338,109590.0,109580.0,0.006]
[1759046758736,1.603768,109590.0,109580.0,0.006]
[1759046766542,0.777768,109590.0,109580.0,0.006]
[1759046766741,1.603368,109590.0,109580.0,0.27589265]
[1759046766940,1.603368,109590.0,109580.0,0.01954]
[1759046768139,1.603368,109590.0,109580.0,0.28943265]
[1759046768940,1.603368,109590.0,109580.0,0.01954]
[1759046769240,1.603368,109590.0,109580.0,0.28943265]
[1759046769740,1.603368,109590.0,109580.0,0.01954]
[1759046772040,1.242568,109590.0,109580.0,0.28943265]
[1759046772340,1.964168,109590.0,109580.0,0.28943265]
[1759046773741,1.138568,109590.0,109580.0,0.28943265]
[1759046773943,1.964008,109590.0,109580.0,0.28943265]
[1759046777943,1.242408,109590.0,109580.0,0.31165265]
[1759046778257,1.964008,109590.0,109580.0,0.31165265]
[1759046778448,1.964008,109590.0,109580.0,0.28943265]
[1759046782649,1.242408,109590.0,109580.0,0.28943265]
[1759046782851,1.964008,109590.0,109580.0,0.28943265]
[1759046783551,1.242408,109590.0,109580.0,0.28943265]
[1759046783850,1.964008,109590.0,109580.0,0.28943265]
[1759046788352,2.01328993,109590.0,109580.0,0.28943265]
[1759046791052,1.964008,109590.0,109580.0,0.28943265]
[1759046793654,1.69411535,109590.0,109580.0,0.28943265]
[1759046793948,1.964008,109590.0,109580.0,0.28943265]
[1759046795556,1.964008,109590.0,109580.0,0.01954]
[1759046795856,1.964008,109590.0,109580.0,0.28943265]
[1759046798558,1.96403518,109590.0,109580.0,0.01954]
[1759046810262,0.86867535,109590.0,109580.0,0.01954]
[1759046810468,1.69331535,109590.0,109580.0,0.04127]
[1759046810661,1.96323518,109590.0,109580.0,0.04127]
[1759046811366,1.13859518,109590.0,109580.0,0.04127]
[1759046811570,1.96323518,109590.0,109580.0,0.04127]
[1759046812067,0.86867535,109590.0,109580.0,0.04127]
[1759046812269,1.96323518,109590.0,109580.0,0.04127]
[1759046814671,1.69331535,109590.0,109580.0,0.04127]
[1759046814870,1.96323518,109590.0,109580.0,0.04127]
[1759046815471,0.86867535,109590.0,109580.0,0.04127]
[1759046815666,1.96323518,109590.0,109580.0,0.04127]
[1759046815866,1.96323518,109590.0,109580.0,0.31118983]
[1759046816471,1.13859518,109590.0,109580.0,0.31118983]
[1759046816771,1.96335518,109590.0,109580.0,0.04127]
[1759046825483,1.24175518,109590.0,109580.0,0.04127]
[1759046825685,1.96335518,109590.0,109580.0,0.04127]
[1759046828586,1.69343535,109590.0,109580.0,0.04127]
[1759046828787,1.96335518,109590.0,109580.0,0.04127]
[1759046831990,1.69343535,109590.0,109580.0,0.04127]
[1759046832290,1.96335518,109590.0,109580.0,0.04127]
[1759046833594,1.13859518,109590.0,109580.0,0.04127]
[1759046833785,1.96323518,109590.0,109580.0,0.04127]
[1759046837594,1.69395535,109590.0,109580.0,0.04127]
[1759046837796,1.96387518,109590.0,109580.0,0.04127]
[1759046844907,1.69395535,109590.0,109580.0,0.04127]
[1759046845099,1.96387518,109590.0,109580.0,0.04127]
[1759046846104,1.69395535,109590.0,109580.0,0.04127]
[1759046846304,1.96387518,109590.0,109580.0,0.04127]
[1759046846999,1.24227518,109590.0,109580.0,0.04127]
[1759046847204,1.96387518,109590.0,109580.0,0.04127]
[1759046847406,1.24227518,109590.0,109580.0,0.04127]
[1759046847604,1.96387518,109590.0,109580.0,0.04127]
[1759046854811,1.69395535,109590.0,109580.0,0.04127]
[1759046855013,1.96387518,109590.0,109580.0,0.04127]
[1759046857014,1.24227518,109590.0,109580.0,0.04127]
[1759046857315,1.96387518,109590.0,109580.0,0.04127]
[1759046860510,1.96385966,109590.0,109580.0,0.31117431]
[1759046866713,1.69395535,109590.0,109580.0,0.31117431]
[1759046866914,1.96385966,109590.0,109580.0,0.31117431]
[1759046868224,1.96385966,109590.0,109580.0,0.04127]
[1759046868524,1.96385966,109590.0,109580.0,0.31117431]
[1759046868924,1.96385966,109590.0,109580.0,0.04127]
[1759046869120,1.96385966,109590.0,109580.0,0.31117431]
[1759046870712,1.96385966,109590.0,109580.0,0.01954]
[1759046871019,2.23376397,109590.0,109580.0,0.006]
[1759046871228,2.63376397,109590.0,109580.0,0.006]
[1759046871415,0.0912208,109570.0,109560.0,0.30543431]
[1759046871614,1.59095504,109570.0,109560.0,0.01278]
[1759046872031,1.59095504,109570.0,109560.0,0.28268431]
[1759046872220,1.59127937,109570.0,109560.0,0.01278]
[1759046872713,1.64379704,109570.0,109560.0,0.01478]
[1759046872918,1.64379704,109570.0,109560.0,0.28468431]
[1759046873119,1.64379704,109570.0,109560.0,0.01478]
[1759046873313,1.64423704,109570.0,109560.0,0.01278]
[1759046873515,1.64523704,109570.0,109560.0,0.01278]
[1759046873918,1.64523704,109570.0,109560.0,0.28268431]
[1759046874122,1.64519704,109570.0,109560.0,0.28268431]
[1759046874320,1.64919704,109570.0,109560.0,0.28268431]
[1759046874625,0.55385273,109570.0,109560.0,0.30543431]
[1759046874827,1.64919704,109570.0,109560.0,0.30543431]
[1759046877030,0.82375704,109570.0,109560.0,0.01278]
[1759046877228,1.64963704,109570.0,109560.0,0.01278]
[1759046877728,0.82375704,109570.0,109560.0,0.01278]
[1759046877929,1.64967704,109570.0,109560.0,0.01278]
[1759046884533,1.37977273,109570.0,109560.0,0.01278]
[1759046884730,1.64967704,109570.0,109560.0,0.01278]
[1759046885434,0.82375704,109570.0,109560.0,0.01278]
[1759046885633,1.64991704,109570.0,109560.0,0.28268431]
[1759046886930,0.55385273,109570.0,109560.0,0.28268431]
[1759046887131,1.37997273,109570.0,109560.0,0.30543431]
[1759046887333,1.64987704,109570.0,109560.0,0.30543431]
[1759046887837,1.37993273,109570.0,109560.0,0.03553]
[1759046888032,0.82375704,109570.0,109560.0,0.01278]
[1759046888334,0.0912291,109560.0,109550.0,0.0366]
[1759046888530,0.47504573,109560.0,109550.0,0.0366]
[1759046889438,0.74495004,109560.0,109550.0,0.30650431]
[1759046890831,0.74495004,109560.0,109550.0,0.70650431]
[1759046890832,0.74595004,109560.0,109550.0,0.70650431]
[1759046892338,0.74595004,109560.0,109550.0,0.30650431]
[1759046893038,0.0912374,109550.0,109540.0,0.03449]
[1759046893337,1.57303834,109550.0,109540.0,0.30439431]
[1759046894341,1.57303834,109550.0,109540.0,0.30639431]
[1759046895144,1.57303834,109550.0,109540.0,0.30839431]
[1759046896844,1.30313403,109550.0,109540.0,0.30839431]
[1759046897036,1.57303834,109550.0,109540.0,0.30839431]
[1759046897237,0.74495834,109550.0,109540.0,0.30839431]
[1759046897442,1.57351834,109550.0,109540.0,0.30839431]
[1759046897945,1.58241701,109550.0,109540.0,0.30839431]
[1759046899444,1.3124327,109550.0,109540.0,0.30839431]
[1759046899741,1.58233701,109550.0,109540.0,0.30839431]
[1759046901245,1.58221701,109550.0,109540.0,0.30839431]
[1759046901745,0.75385701,109550.0,109540.0,0.30839431]
[1759046902145,1.58209701,109550.0,109540.0,0.30839431]
[1759046904749,0.75385701,109550.0,109540.0,0.30839431]
[1759046904946,1.58209701,109550.0,109540.0,0.30839431]
[1759046908848,1.58209701,109550.0,109540.0,0.03849]
[1759046909053,1.58209701,109550.0,109540.0,0.30839431]
[1759046910263,1.58209701,109550.0,109540.0,0.03849]
[1759046910559,1.58209701,109550.0,109540.0,0.30839431]
[1759046913053,1.3121927,109550.0,109540.0,0.30839431]
[1759046913254,1.58153701,109550.0,109540.0,0.30839431]
[1759046915953,1.3116327,109550.0,109540.0,0.30839431]
[1759046916153,1.58153701,109550.0,109540.0,0.30839431]
[1759046920565,1.58170789,109550.0,109540.0,0.03849]
[1759046921066,1.58138789,109550.0,109540.0,0.03849]
[1759046921468,0.75402789,109550.0,109540.0,0.03849]
[1759046921765,1.58134789,109550.0,109540.0,0.03849]
[1759046922465,0.75402789,109550.0,109540.0,0.03849]
[1759046922662,1.58130789,109550.0,109540.0,0.03849]
[1759046922853,0.75402789,109550.0,109540.0,0.03849]
[1759046923058,1.58126789,109550.0,109540.0,0.03849]
[1759046923467,0.75402789,109550.0,109540.0,0.03849]
[1759046923668,1.58126789,109550.0,109540.0,0.03849]
[1759046924171,1.3111927,109550.0,109540.0,0.03849]
[1759046925069,0.4839527,109550.0,109540.0,0.03849]
[1759046925266,1.58126789,109550.0,109540.0,0.03849]
[1759046925666,0.3927153,109550.0,109540.0,0.79981099]
[1759046925969,0.0319153,109550.0,109540.0,0.79981099]
[1759046926169,0.85045663,109550.0,109540.0,1.16061099]
[1759046926366,0.02301663,109550.0,109540.0,1.16061099]
[1759046926569,0.82748,109560.0,109550.0,0.1283194]
[1759046926767,0.85056695,109560.0,109550.0,0.39839459]
[1759046927870,0.94279605,109560.0,109550.0,0.39839459]
[1759046928070,0.94275605,109560.0,109550.0,0.39839459]
[1759046928271,0.94271605,109560.0,109550.0,0.39839459]
[1759046929373,0.11531605,109560.0,109550.0,0.39839459]
[1759046929673,0.94267605,109560.0,109550.0,0.39839459]
[1759046931173,0.11531605,109560.0,109550.0,0.39839459]
[1759046931374,0.94255605,109560.0,109550.0,0.39839459]
[1759046948684,0.11531605,109560.0,109550.0,0.39839459]
[1759046948886,0.94199605,109560.0,109550.0,0.39839459]
[1759046972505,0.94123605,109560.0,109550.0,0.39839459]
[1759046973601,0.11531605,109560.0,109550.0,0.39839459]
[1759046973802,0.94119605,109560.0,109550.0,0.39839459]
[1759046974905,0.94119605,109560.0,109550.0,0.75919459]
[1759046976608,0.94119605,109560.0,109550.0,0.39839459]
[1759046976811,0.94119605,109560.0,109550.0,0.75919459]
[1759046979611,0.94119605,109560.0,109550.0,0.39839459]
[1759046979813,0.94119605,109560.0,109550.0,0.75919459]
[1759046982510,0.94119605,109560.0,109550.0,1.02902022]
[1759046984317,0.11531605,109560.0,109550.0,1.02902022]
[1759046984517,0.94091605,109560.0,109550.0,1.02902022]
[1759046987223,0.94075605,109560.0,109550.0,1.02902022]
[1759046991237,0.84952695,109560.0,109550.0,1.02902022]
[1759046991534,0.94075605,109560.0,109550.0,1.02902022]
[1759046996237,0.94071605,109560.0,109550.0,1.02902022]
[1759047002238,0.94071605,109560.0,109550.0,0.4891194]
[1759047002647,0.94071605,109560.0,109550.0,0.75906981]
[1759047002829,0.94071605,109560.0,109550.0,1.02902022]
[1759047005642,0.94071605,109560.0,109550.0,0.66822022]
[1759047008240,0.94071605,109560.0,109550.0,0.39826981]
[1759047008745,0.94071605,109560.0,109550.0,0.30704041]
[1759047009543,0.94071605,109560.0,109550.0,0.39827781]
[1759047010145,0.94071605,109560.0,109550.0,0.30704041]
[1759047016052,0.9408503,109560.0,109550.0,0.30704041]
[1759047020957,0.9408503,109560.0,109550.0,0.03709]
[1759047021148,0.9408503,109560.0,109550.0,0.30704041]
[1759047027353,0.9408503,109560.0,109550.0,0.39827791]
[1759047034856,0.1154503,109560.0,109550.0,0.39827791]
[1759047035057,0.9408903,109560.0,109550.0,0.39827791]
[1759047035256,0.9408903,109560.0,109550.0,0.66822832]
[1759047044373,0.9408903,109560.0,109550.0,0.39827791]
[1759047044581,0.9408903,109560.0,109550.0,0.39829888]
[1759047044787,0.9408903,109560.0,109550.0,0.30706138]
[1759047045789,0.9408903,109560.0,109550.0,0.39829878]
[1759047047284,1.3016903,109560.0,109550.0,0.03709]
[1759047047484,1.3016903,109560.0,109550.0,0.30706138]
[1759047047683,1.30165259,109560.0,109550.0,0.30706138]
[1759047048886,0.47621259,109560.0,109550.0,0.30706138]
[1759047049088,1.30165259,109560.0,109550.0,0.30706138]
[1759047052187,1.30165259,109560.0,109550.0,0.03709]
[1759047052387,1.30165259,109560.0,109550.0,0.30706138]
[1759047054992,0.47621259,109560.0,109550.0,0.30706138]
[1759047055292,1.30165259,109560.0,109550.0,0.30706138]
[1759047055592,0.47620512,109560.0,109550.0,0.30706138]
[1759047055895,1.30164512,109560.0,109550.0,0.30706138]
[1759047056189,1.30164512,109560.0,109550.0,0.03709]
[1759047056390,1.30164512,109560.0,109550.0,0.30706138]
[1759047059293,1.30164512,109560.0,109550.0,0.39829878]
[1759047066301,0.47620512,109560.0,109550.0,0.39829878]
[1759047066600,1.30164512,109560.0,109550.0,0.39829878]
[1759047072307,0.94084512,109560.0,109550.0,0.39829878]
[1759047072605,1.30164512,109560.0,109550.0,0.39829878]
[1759047074103,0.94084512,109560.0,109550.0,0.39829878]
[1759047074408,0.11540512,109560.0,109550.0,0.39829878]
[1759047074612,0.94084512,109560.0,109550.0,0.39829878]
[1759047079013,0.11540512,109560.0,109550.0,0.39829878]
[1759047079315,0.94080512,109560.0,109550.0,0.39829878]
[1759047102528,0.11540512,109560.0,109550.0,0.39829878]
[1759047102728,0.94076512,109560.0,109550.0,0.39829878]
[1759047106630,0.94076512,109560.0,109550.0,0.39830635]
[1759047116944,0.94072512,109560.0,109550.0,0.39830635]
[1759047119144,0.94068512,109560.0,109550.0,0.39830635]
[1759047120240,0.11540512,109560.0,109550.0,0.39830635]
[1759047120444,0.94068512,109560.0,109550.0,0.39830635]
[1759047125454,0.11540512,109560.0,109550.0,0.39830635]
[1759047125752,0.94068512,109560.0,109550.0,0.39830635]
[1759047129355,0.11540512,109560.0,109550.0,0.39830635]
[1759047129558,0.94068512,109560.0,109550.0,0.39830635]
[1759047132363,0.02417602,109560.0,109550.0,0.6682853]
[1759047132860,0.84941602,109560.0,109550.0,0.6682853]
[1759047133655,0.02417602,109560.0,109550.0,0.6682853]
[1759047134061,0.84941602,109560.0,109550.0,0.6682853]
[1759047135564,0.02417602,109560.0,109550.0,0.6682853]
[1759047135754,0.84941602,109560.0,109550.0,0.6682853]
[1759047138059,0.02417602,109560.0,109550.0,0.6682853]
[1759047138264,0.84941602,109560.0,109550.0,0.6682853]
[1759047138862,0.02417602,109560.0,109550.0,0.6682853]
[1759047139066,0.84941602,109560.0,109550.0,0.6682853]
[1759047146267,0.84941602,109560.0,109550.0,0.1283274]
[1759047146466,0.84941602,109560.0,109550.0,0.6682853]
[1759047146762,0.02417602,109560.0,109550.0,0.6682853]
[1759047146967,0.84941602,109560.0,109550.0,0.6682853]
[1759047148470,0.94064512,109560.0,109550.0,0.6682853]
[1759047153976,0.94064512,109560.0,109550.0,0.1283274]
[1759047154170,0.94064512,109560.0,109550.0,0.6682853]
[1759047155272,0.11540512,109560.0,109550.0,0.6682853]
[1759047155479,0.94064512,109560.0,109550.0,0.6682853]
[1759047165184,0.11540512,109560.0,109550.0,0.6682853]
[1759047165384,0.94060512,109560.0,109550.0,0.6682853]
[1759047166386,0.11540512,109560.0,109550.0,0.6682853]
[1759047166586,0.94060512,109560.0,109550.0,0.6682853]
[1759047168585,0.94060512,109560.0,109550.0,0.39828116]
[1759047169288,0.11540512,109560.0,109550.0,0.39828116]
[1759047169785,0.94060512,109560.0,109550.0,0.39828116]
[1759047170781,0.11540512,109560.0,109550.0,0.39828116]
[1759047170987,0.94060512,109560.0,109550.0,0.39828116]
[1759047171382,0.94060512,109560.0,109550.0,0.1283274]
[1759047171586,0.94060512,109560.0,109550.0,0.39828116]
[1759047174190,0.94060512,109560.0,109550.0,0.1283274]
[1759047174388,0.94060512,109560.0,109550.0,0.39828116]
[1759047175286,0.94056512,109560.0,109550.0,0.39828116]
[1759047176789,0.11540512,109560.0,109550.0,0.39828116]
[1759047176990,0.94056512,109560.0,109550.0,0.39828116]
[1759047190206,0.11540512,109560.0,109550.0,0.39828116]
[1759047190506,0.94052512,109560.0,109550.0,0.39828116]
[1759047191207,0.94052002,109560.0,109550.0,0.39828116]
[1759047198012,0.94048002,109560.0,109550.0,0.39828116]
[1759047198805,0.02417092,109560.0,109550.0,1.42903492]
[1759047199010,0.001,109560.0,109550.0,1.49457794]
[1759047199509,0.001,109560.0,109550.0,1.50372102]
[1759047200813,0.001,109560.0,109550.0,1.438178]
[1759047201204,0.001,109560.0,109550.0,1.440178]
[1759047201405,0.1650368,109570.0,109560.0,0.1255091]
[1759047201611,0.18817319,109570.0,109560.0,1.02621662]
[1759047204111,0.09695169,109570.0,109560.0,1.02621662]
[1759047204309,0.02413639,109570.0,109560.0,1.42621662]
[1759047204811,0.02413639,109570.0,109560.0,2.25121662]
[1759047205110,0.001,109570.0,109560.0,2.25121662]
[1759047208414,0.001,109570.0,109560.0,1.42621662]
[1759047208815,0.001,109570.0,109560.0,2.25117662]
[1759047209115,0.001,109570.0,109560.0,1.42621662]
[1759047209413,0.001,109570.0,109560.0,2.25117662]
[1759047211508,0.10010941,109580.0,109570.0,0.0912208]
[1759047211714,0.12255412,109580.0,109570.0,0.39545456]
[1759047212719,0.12455412,109580.0,109570.0,0.39545456]
[1759047214716,0.03334052,109580.0,109570.0,0.39545456]
[1759047214922,0.03734052,109580.0,109570.0,0.39545456]
[1759047217427,0.12855302,109580.0,109570.0,0.39545456]
[1759047218427,0.12455302,109580.0,109570.0,0.39545456]
[1759047218618,0.12555302,109580.0,109570.0,0.39545456]
[1759047220623,0.12855302,109580.0,109570.0,0.39545456]
[1759047229231,0.95335302,109580.0,109570.0,0.39545456]
[1759047230535,0.95335302,109580.0,109570.0,0.39540034]
[1759047230726,0.12855302,109580.0,109570.0,0.39540034]
[1759047231025,0.95335302,109580.0,109570.0,0.39540034]
[1759047233142,0.12855302,109580.0,109570.0,0.39540034]
[1759047233337,0.95335302,109580.0,109570.0,0.39540034]
[1759047233634,0.12855302,109580.0,109570.0,0.39540034]
[1759047233832,0.95335302,109580.0,109570.0,0.39540034]
[1759047235338,0.12855302,109580.0,109570.0,0.39540034]
[1759047235538,0.95335302,109580.0,109570.0,0.39540034]
[1759047235942,0.12855302,109580.0,109570.0,0.39540034]
[1759047236238,0.95335302,109580.0,109570.0,0.39540034]
[1759047245645,0.12855302,109580.0,109570.0,0.39540034]
[1759047246142,0.95331302,109580.0,109570.0,0.39540034]
[1759047246342,0.12855302,109580.0,109570.0,0.39540034]
[1759047246542,0.95331302,109580.0,109570.0,0.39540034]
[1759047267178,0.953669,109580.0,109570.0,0.39540034]
[1759047268574,0.953669,109580.0,109570.0,0.1255008]
[1759047268776,1.60566819,109580.0,109570.0,0.30417954]
[1759047269070,1.58436854,109580.0,109570.0,0.30417954]
[1759047269567,1.60566849,109580.0,109570.0,0.30417954]
[1759047269975,2.00566849,109580.0,109570.0,0.30417954]
[1759047270665,1.73576895,109580.0,109570.0,0.30417954]
[1759047270871,2.00566849,109580.0,109570.0,0.30417954]
[1759047279470,1.60566849,109580.0,109570.0,0.30417954]
[1759047283783,2.00566849,109580.0,109570.0,0.28308954]
[1759047283986,2.00558849,109580.0,109570.0,0.28308954]
[1759047287476,1.18090849,109580.0,109570.0,0.28308954]
[1759047288081,2.00554849,109580.0,109570.0,0.28308954]
[1759047288383,1.18090849,109580.0,109570.0,0.28308954]
[1759047288584,2.00554849,109580.0,109570.0,0.28308954]
[1759047289080,0.0912208,109570.0,109560.0,0.28308954]
[1759047289274,1.56936103,109570.0,109560.0,0.39611864]
[1759047289782,1.64259258,109570.0,109560.0,0.39611864]
[1759047290384,1.64359258,109570.0,109560.0,0.39611864]
[1759047290684,1.37369304,109570.0,109560.0,0.39618434]
[1759047291286,0.54905304,109570.0,109560.0,0.39618434]
[1759047291486,1.37369304,109570.0,109560.0,0.39618434]
[1759047291881,0.54905304,109570.0,109560.0,0.39618434]
[1759047292086,1.37369304,109570.0,109560.0,0.39618434]
[1759047303794,0.54905304,109570.0,109560.0,0.39618434]
[1759047303991,1.37369304,109570.0,109560.0,0.39618434]
[1759047305394,1.37369304,109570.0,109560.0,0.30495524]
[1759047305597,1.37369304,109570.0,109560.0,0.01319]
[1759047305795,0.0912291,109560.0,109550.0,0.39707634]
[1759047306098,0.11402979,109560.0,109550.0,0.39707634]
[1759047307101,0.11402979,109560.0,109550.0,0.39907634]
[1759047307398,0.49639247,109560.0,109550.0,0.03988]
[1759047307698,0.49639247,109560.0,109550.0,0.30984524]
[1759047312700,0.49639247,109560.0,109550.0,0.03988]
[1759047315398,0.47482979,109560.0,109550.0,0.03988]
[1759047315996,0.47482979,109560.0,109550.0,0.1311174]
[1759047316193,1.29946979,109560.0,109550.0,0.1311174]
[1759047316497,1.29946979,109560.0,109550.0,0.40108264]
[1759047317298,1.29946979,109560.0,109550.0,0.1311174]
[1759047317498,1.29946979,109560.0,109550.0,0.30984524]
[1759047318402,1.29946979,109560.0,109550.0,0.03988]
[1759047318605,0.47482979,109560.0,109550.0,0.30984524]
[1759047318899,1.29946979,109560.0,109550.0,0.03988]
[1759047319105,1.29946979,109560.0,109550.0,0.30984524]
[1759047319304,1.29946979,109560.0,109550.0,0.03988]
[1759047319504,1.29946979,109560.0,109550.0,0.30984524]
[1759047319705,1.29977931,109560.0,109550.0,0.30984524]
[1759047321700,1.56974455,109560.0,109550.0,0.28791524]
[1759047322004,1.56974455,109560.0,109550.0,0.004]
[1759047322401,1.96974455,109560.0,109550.0,0.004]
[1759047323008,2.00260681,109560.0,109550.0,0.004]
[1759047324808,1.96974455,109560.0,109550.0,0.004]
[1759047327509,1.9697377,109560.0,109550.0,0.004]
[1759047328109,1.1450977,109560.0,109550.0,0.004]
[1759047328308,1.9697777,109560.0,109550.0,0.004]
[1759047330609,1.16614232,109560.0,109550.0,0.004]
[1759047330810,1.99082232,109560.0,109550.0,0.004]
[1759047331610,1.16614232,109560.0,109550.0,0.004]
[1759047331810,1.99082232,109560.0,109550.0,0.004]
[1759047334011,2.35162232,109560.0,109550.0,0.004]
[1759047335713,2.38448458,109560.0,109550.0,0.004]
[1759047337513,1.66288458,109560.0,109550.0,0.004]
[1759047337714,2.35162232,109560.0,109550.0,0.004]
[1759047339413,1.95162232,109560.0,109550.0,0.004]
[1759047340514,1.98448458,109560.0,109550.0,0.004]
[1759047343915,1.15980458,109560.0,109550.0,0.004]
[1759047344115,1.98448458,109560.0,109550.0,0.004]
[1759047346017,1.26288458,109560.0,109550.0,0.004]
[1759047346218,1.98448458,109560.0,109550.0,0.004]
[1759047350925,1.96138122,109560.0,109550.0,0.004]
[1759047351223,1.92851896,109560.0,109550.0,0.004]
[1759047351723,1.10383896,109560.0,109550.0,0.004]
[1759047351923,1.92847896,109560.0,109550.0,0.004]
[1759047352624,2.1986033,109560.0,109550.0,0.27404479]
[1759047353726,2.23146983,109560.0,109550.0,0.27404479]
[1759047353924,2.25463506,109560.0,109550.0,0.27404479]
[1759047354423,2.23146983,109560.0,109550.0,0.36528229]
[1759047354630,2.23142983,109560.0,109550.0,0.36528229]
[1759047356330,2.1985633,109560.0,109550.0,0.36528229]
[1759047358029,2.1985633,109560.0,109550.0,0.37825229]
[1759047360032,1.3739633,109560.0,109550.0,0.37825229]
[1759047360331,1.65847372,109560.0,109550.0,0.40131229]
[1759047360630,1.92851851,109560.0,109550.0,0.40131229]
[1759047361032,1.92851851,109560.0,109550.0,0.37825229]
[1759047363228,1.15994543,109560.0,109550.0,0.37825229]
[1759047363428,0.4050041,109560.0,109550.0,1.07135708]
[1759047363634,0.8687641,109560.0,109550.0,1.07135708]
[1759047363934,0.8687641,109560.0,109550.0,0.80131229]
[1759047364431,1.2295641,109560.0,109550.0,0.80131229]
[1759047364632,1.2295641,109560.0,109550.0,0.5312675]
[1759047364834,1.59083799,109560.0,109550.0,0.71007479]
[1759047365143,1.59083799,109560.0,109550.0,0.80131219]
[1759047368038,1.3207932,109560.0,109550.0,0.80131219]
[1759047368337,1.59083799,109560.0,109550.0,0.80131219]
[1759047376043,1.59083799,109560.0,109550.0,0.31007479]
[1759047376439,1.59083799,109560.0,109550.0,0.40131219]
[1759047376942,1.59083799,109560.0,109550.0,0.31007479]
[1759047378846,1.57883799,109560.0,109550.0,0.31007479]
[1759047381446,1.57883799,109560.0,109550.0,0.01697]
[1759047381742,1.88175022,109560.0,109550.0,0.004]
[1759047382336,1.88175022,109560.0,109550.0,0.01781]
[1759047382940,1.84888278,109560.0,109550.0,0.01781]
[1759047384646,1.88175022,109560.0,109550.0,0.01781]
[1759047386349,1.8727056,109560.0,109550.0,0.01781]
[1759047386751,1.89436107,109560.0,109550.0,0.01781]
[1759047390252,1.62739628,109560.0,109550.0,0.30949479]
[1759047393456,0.79975628,109560.0,109550.0,0.30949479]
[1759047393655,1.62735628,109560.0,109550.0,0.30949479]
[1759047393862,0.52971149,109560.0,109550.0,0.30949479]
[1759047394155,1.62735628,109560.0,109550.0,0.30949479]
[1759047395946,1.60570081,109560.0,109550.0,0.30949479]
[1759047396151,1.62681678,109560.0,109550.0,0.40073219]
[1759047397058,1.59394934,109560.0,109550.0,0.40073219]
[1759047400664,1.32390455,109560.0,109550.0,0.40073219]
[1759047400969,1.59394934,109560.0,109550.0,0.40073219]
[1759047401463,1.57283337,109560.0,109550.0,0.40073219]
[1759047401865,1.57255337,109560.0,109550.0,0.40073219]
[1759047402065,1.48152427,109560.0,109550.0,0.40073219]
[1759047402669,1.57275337,109560.0,109550.0,0.40073219]
[1759047414777,1.57224835,109560.0,109550.0,0.40070717]
[1759047415178,1.30222858,109560.0,109550.0,0.40070717]
[1759047417081,0.47518858,109560.0,109550.0,0.40070717]
[1759047417279,1.30222858,109560.0,109550.0,0.40070717]
[1759047421281,1.33509602,109560.0,109550.0,0.40070717]
[1759047423183,1.30222858,109560.0,109550.0,0.40070717]
[1759047424885,0.47518858,109560.0,109550.0,0.40070717]
[1759047425085,1.30210858,109560.0,109550.0,0.40070717]
[1759047427686,1.21091948,109560.0,109550.0,0.40070717]
[1759047427881,0.85011948,109560.0,109550.0,0.40070717]
[1759047428079,0.02315948,109560.0,109550.0,0.80070717]
[1759047428286,0.02315948,109560.0,109550.0,1.16150717]
[1759047428480,0.02315948,109560.0,109550.0,1.43152694]
[1759047429186,1.28386038,109570.0,109560.0,0.1283591]
[1759047429384,1.30711138,109570.0,109560.0,0.66839864]
[1759047431086,1.30811138,109570.0,109560.0,0.66839864]
[1759047434482,1.30811138,109570.0,109560.0,0.39837887]
[1759047436192,1.39933218,109570.0,109560.0,0.39837887]
[1759047436380,1.39933218,109570.0,109560.0,0.1283591]
[1759047436585,1.39933218,109570.0,109560.0,0.39837887]
[1759047442693,1.40013218,109570.0,109560.0,0.39837887]
[1759047444496,0.57077218,109570.0,109560.0,0.39837887]
[1759047444695,1.40009218,109570.0,109560.0,0.39837887]
[1759047446594,1.03929218,109570.0,109560.0,0.39837887]
[1759047446895,1.40009218,109570.0,109560.0,0.39837887]
[1759047452792,1.39985218,109570.0,109560.0,0.39837887]